bitfinex/quotes_SOLUSD_20240822
["timestamp","ask_amount","ask_price","bid_price","bid_amount"]
[1724361866184,1.20911818,143.49,143.46,17.4254]
[1724361866485,6.327,143.51,143.46,17.4254]
[1724361866486,6.327,143.51,143.47,1.39363634]
[1724361866681,6.327,143.51,143.48,6.9696]
[1724361866881,15.3712,143.52,143.48,6.9696]
[1724361867087,15.3712,143.52,143.49,8.36245017]
[1724361867590,24.5412,143.52,143.49,8.36245017]
[1724361868161,24.5412,143.52,143.5,1.39353442]
[1724361868366,24.5412,143.52,143.5,6.9685]
[1724361868553,9.17,143.52,143.5,6.9685]
[1724361869159,9.17,143.54,143.5,6.9685]
[1724361869784,9.17,143.54,143.51,1.39337676]
[1724361869973,9.17,143.54,143.51,8.36147676]
[1724361870156,7.25744703,143.55,143.52,6.9676]
[1724361870367,16.42744703,143.55,143.52,6.9676]
[1724361871491,15.2131,143.55,143.53,6.9671]
[1724361872858,1.2142006,143.58,143.56,6.9656]
[1724361873068,6.0431,143.6,143.55,24.3815]
[1724361873069,9.17,143.59,143.55,24.3815]
[1724361873269,9.17,143.59,143.56,1.39197546]
[1724361874292,9.17,143.59,143.55,24.3815]
[1724361875780,9.17,143.57,143.55,24.3815]
[1724361876310,6.0431,143.6,143.55,17.4154]
[1724361876611,9.17,143.58,143.55,17.4154]
[1724361877107,9.17,143.58,143.55,24.3815]
[1724361877879,13.0068,143.6,143.55,24.3815]
[1724361878097,9.17,143.58,143.55,24.3815]
[1724361878484,13.0068,143.6,143.55,24.3815]
[1724361878683,9.17,143.58,143.55,24.3815]
[1724361879284,9.17,143.58,143.56,1.3929312]
[1724361879497,9.17,143.58,143.55,24.3815]
[1724361879697,9.17,143.58,143.56,6.9656]
[1724361882608,9.17,143.59,143.56,6.9656]
[1724361884711,13.0068,143.6,143.56,6.9656]
[1724361885010,9.17,143.58,143.56,6.9656]
[1724361887993,13.0068,143.6,143.56,6.9656]
[1724361888318,9.17,143.58,143.56,6.9656]
[1724361890705,9.17,143.58,143.55,17.4154]
[1724361890706,6.0431,143.6,143.57,6.9651]
[1724361891089,15.2131,143.6,143.57,6.9651]
[1724361892038,15.2131,143.6,143.56,6.9652]
[1724361893220,15.2131,143.6,143.57,6.9651]
[1724361893424,6.0431,143.6,143.57,6.9651]
[1724361893721,15.2131,143.6,143.57,6.9651]
[1724361895051,6.0431,143.6,143.57,6.9651]
[1724361895242,15.2131,143.6,143.57,6.9651]
[1724361895424,1.21394678,143.59,143.57,6.9651]
[1724361895621,1.21394678,143.59,143.58,8.35749003]
[1724361895822,9.17,143.62,143.58,6.9647]
[1724361896234,9.17,143.62,143.59,6.9642]
[1724361896434,6.0829,143.63,143.59,6.9642]
[1724361896624,9.17,143.62,143.59,6.9642]
[1724361897432,6.0829,143.63,143.59,6.9642]
[1724361897632,6.9618,143.64,143.59,6.9642]
[1724361897917,9.17,143.63,143.6,1.39257085]
[1724361898119,9.17,143.63,143.59,6.9642]
[1724361900553,9.17,143.61,143.59,6.9642]
[1724361901256,9.17,143.61,143.54,17.4162]
[1724361901464,9.17,143.56,143.55,6.9662]
[1724361903237,6.9638,143.6,143.56,6.9657]
[1724361903430,9.17,143.58,143.56,6.9657]
[1724361903735,9.17,143.58,143.57,6.9652]
[1724361904559,13.56719,143.62,143.58,6.9647]
[1724361904757,13.56719,143.62,143.57,24.378]
[1724361905055,9.17,143.59,143.57,24.378]
[1724361906888,9.17,143.61,143.58,6.9647]
[1724361913377,9.17,143.61,143.59,8.35686837]
[1724361914596,9.17,143.61,143.58,6.9646]
[1724361915159,6.4788,143.62,143.59,6.9641]
[1724361915356,9.17,143.61,143.59,6.9641]
[1724361916410,10.38378959,143.61,143.59,6.9641]
[1724361917765,10.38378959,143.61,143.44,16.514]
[1724361917766,1.2,143.54,143.44,16.514]
[1724361917966,1.2,143.54,143.45,4.01916606]
[1724361918285,9.17,143.5,143.45,4.01916606]
[1724361918492,9.17,143.5,143.46,4.01916606]
[1724361918683,9.17,143.5,143.44,16.514]
[1724361918984,9.17,143.5,143.44,20.5338896]
[1724361919286,9.17,143.5,143.49,6.9689]
[1724361919462,8.1667,143.54,143.49,6.9689]
[1724361919760,9.17,143.51,143.49,6.9689]
[1724361921288,9.17,143.51,143.5,6.9686]
[1724361923905,6.9667,143.54,143.5,6.9686]
[1724361924202,9.17,143.52,143.5,6.9686]
[1724361931911,65.6451,143.57,143.51,17.4199]
[1724361932117,9.17,143.54,143.51,17.4199]
[1724361932478,21.9995,143.57,143.51,17.4199]
[1724361933007,9.17,143.55,143.52,6.9675]
[1724361933218,9.17,143.55,143.53,6.9671]
[1724361934401,13.3063,143.57,143.53,6.9671]
[1724361934583,9.17,143.55,143.53,6.9671]
[1724361935706,6.9648,143.58,143.53,6.9671]
[1724361936114,9.17,143.56,143.53,6.9671]
[1724361936518,9.17,143.56,143.54,6.9665]
[1724361937036,9.17,143.57,143.54,6.9665]
[1724361937513,9.17,143.57,143.53,17.4174]
[1724361937514,9.17,143.57,143.55,6.9658]
[1724361939239,6.9643,143.59,143.55,6.9658]
[1724361939543,9.17,143.58,143.55,6.9658]
[1724361944531,9.17,143.58,143.56,6.9657]
[1724361944836,6.9639,143.6,143.56,6.9657]
[1724361945038,9.17,143.58,143.56,6.9657]
[1724361947738,9.17,143.58,143.55,6.9661]
[1724361947928,9.17,143.56,143.55,6.9661]
[1724361948536,9.17,143.56,143.54,6.9665]
[1724361949032,6.9646,143.59,143.55,6.9662]
[1724361949212,9.17,143.57,143.55,6.9662]
[1724361958710,16.1346,143.59,143.55,6.9662]
[1724361960461,9.17,143.59,143.55,6.9662]
[1724361966661,6.9639,143.6,143.55,6.9662]
[1724361966856,9.17,143.58,143.55,6.9662]
[1724361972477,6.9639,143.6,143.55,6.9662]
[1724361972782,9.17,143.58,143.55,6.9662]
[1724361979574,9.17,143.59,143.56,6.9656]
[1724361981175,6.9638,143.6,143.56,6.9656]
[1724361981378,9.17,143.58,143.56,6.9656]
[1724362000348,9.17,143.58,143.55,24.3808]
[1724362054108,9.17,143.58,143.56,6.9657]
[1724362062825,9.17,143.62,143.57,18.8054151]
[1724362063499,16.1328,143.62,143.58,6.9644]
[1724362063824,9.17,143.62,143.59,6.9642]
[1724362074556,22.1484,143.65,143.59,17.4102]
[1724362074759,9.42098,143.64,143.6,6.9636]
[1724362076171,16.38288,143.64,143.6,6.9636]
[1724362078376,7.21288,143.64,143.6,6.9636]
[1724362078676,9.17,143.64,143.61,6.963]
[1724362079362,9.17,143.65,143.62,6.9626]
[1724362080054,13.007,143.66,143.62,6.9626]
[1724362080254,9.17,143.65,143.62,6.9626]
[1724362080469,0.12549,143.67,143.62,6.9626]
[1724362080669,9.17,143.66,143.62,6.9626]
[1724362082476,9.17,143.66,143.63,6.9622]
[1724362082781,6.9603,143.67,143.63,6.9622]
[1724362082954,9.17,143.66,143.63,6.9622]
[1724362084578,6.9603,143.67,143.63,6.9622]
[1724362084883,16.1303,143.67,143.63,6.9622]
[1724362085650,9.17,143.67,143.63,6.9622]
[1724362090883,6.9599,143.68,143.63,6.9622]
[1724362091186,9.17,143.67,143.63,6.9622]
[1724362092980,16.1304,143.67,143.63,6.9622]
[1724362101372,0.12549,143.69,143.64,6.9618]
[1724362101373,16.1299,143.68,143.64,6.9618]
[1724362101554,6.9599,143.68,143.64,6.9618]
[1724362101767,6.9595,143.69,143.65,6.961]
[1724362101968,16.1295,143.69,143.65,6.961]
[1724362103487,6.9595,143.69,143.65,6.961]
[1724362103681,16.1295,143.69,143.65,6.961]
[1724362106497,6.9595,143.69,143.65,6.961]
[1724362106675,16.1295,143.69,143.65,6.961]
[1724362119622,6.959,143.7,143.66,6.9608]
[1724362119835,16.129,143.7,143.66,6.9608]
[1724362120007,9.17,143.7,143.66,6.9608]
[1724362120530,9.17,143.7,143.67,6.9603]
[1724362123112,9.17,143.7,143.66,6.9607]
[1724362123729,16.1289,143.7,143.66,6.9607]
[1724362137540,16.1289,143.7,143.66,6.4607]
[1724362141330,0.8468765,143.72,143.66,6.4607]
[1724362141331,6.9586,143.71,143.66,6.4607]
[1724362141651,16.1286,143.71,143.66,6.4607]
[1724362142928,6.9586,143.71,143.66,6.4607]
[1724362143129,16.1286,143.71,143.66,6.4607]
[1724362146842,6.9586,143.71,143.66,6.4607]
[1724362147054,16.1286,143.71,143.66,6.4607]
[1724362148134,16.1286,143.71,143.67,6.9603]
[1724362151138,6.9586,143.71,143.67,6.9603]
[1724362152248,16.9748765,143.72,143.68,6.9598]
[1724362153484,6.9584,143.71,143.67,6.9603]
[1724362154456,6.9584,143.71,143.68,6.74440771]
[1724362154674,0.8468765,143.72,143.67,17.4003]
[1724362155764,0.8468765,143.72,143.69,6.9591]
[1724362157275,0.8468765,143.72,143.7,6.9585]
[1724362157869,0.8468765,143.72,143.71,6.9584]
[1724362174376,0.8468765,143.72,143.71,16.1284]
[1724362174573,0.8468765,143.72,143.71,36.1284]
[1724362176672,0.8468765,143.72,143.71,81.1284]
[1724362182793,0.8468765,143.72,143.71,36.1284]
[1724362185072,0.8468765,143.72,143.71,81.1284]
[1724362185500,0.8468765,143.72,143.71,61.1284]
[1724362185680,0.8468765,143.72,143.71,81.1284]
[1724362194310,0.8468765,143.72,143.71,88.42614406]
[1724362198315,0.8468765,143.72,143.71,99.2513163]
[1724362198992,0.8468765,143.72,143.71,99.3768063]
[1724362199325,0.8468765,143.72,143.71,112.39561542]
[1724362200515,7.65e-05,143.72,143.71,132.39561542]
[1724362200819,7.65e-05,143.72,143.71,140.37609484]
[1724362202196,7.65e-05,143.72,143.71,185.67520727]
[1724362202524,7.65e-05,143.72,143.71,148.99520727]
[1724362202688,7.65e-05,143.72,143.71,145.0051372]
[1724362203005,7.65e-05,143.72,143.71,153.39217577]
[1724362203320,7.65e-05,143.72,143.71,162.56217577]
[1724362203620,7.65e-05,143.72,143.71,162.56243251]
[1724362204322,7.65e-05,143.72,143.71,190.07243251]
[1724362204994,7.65e-05,143.72,143.71,181.456766]
[1724362205704,6.351,143.8,143.79,24.3409]
[1724362213635,6.3875,143.83,143.82,6.953]
[1724362215509,6.3875,143.83,143.81,24.3373]
[1724362223641,7.599455,143.83,143.81,24.3373]
[1724362225040,7.599455,143.83,143.81,17.3838]
[1724362225338,16.769455,143.83,143.81,24.3374]
[1724362233760,7.599455,143.83,143.81,24.3374]
[1724362245739,0.25098,143.82,143.81,24.3374]
[1724362246769,7.599455,143.83,143.81,24.3374]
[1724362248173,7.599455,143.83,143.82,6.9531]
[1724362248359,7.850435,143.83,143.82,6.9531]
[1724362254075,1.211955,143.83,143.82,6.9531]
[1724362257077,1.211955,143.83,143.82,14.25327599]
[1724362258684,1.211955,143.83,143.82,6.9531]
[1724362259286,1.211955,143.83,143.82,14.25295824]
[1724362260878,1.211955,143.83,143.82,6.9531]
[1724362261779,1.211955,143.83,143.82,14.25294863]
[1724362262787,1.211955,143.83,143.82,6.9531]
[1724362271600,1.211955,143.83,143.82,14.25399004]
[1724362272091,1.211955,143.83,143.82,14.25453998]
[1724362273197,1.211955,143.83,143.82,25.08348196]
[1724362273374,1.211955,143.83,143.82,14.25453998]
[1724362275187,0.8468765,143.86,143.84,6.9518]
[1724362275392,1.21175876,143.85,143.84,6.9518]
[1724362275969,1.21175876,143.85,143.83,17.3806]
[1724362275970,0.8468765,143.86,143.85,6.9516]
[1724362278810,0.8468765,143.86,143.85,22.5453]
[1724362278976,0.3468765,143.86,143.85,22.5453]
[1724362279172,0.3468765,143.86,143.85,41.17699846]
[1724362279575,0.3468765,143.86,143.85,61.17699846]
[1724362280300,0.3468765,143.86,143.85,105.67251348]
[1724362280603,0.3468765,143.86,143.85,105.79800348]
[1724362282913,0.3468765,143.86,143.85,114.84251348]
[1724362283115,0.3468765,143.86,143.85,69.84251348]
[1724362283426,0.3468765,143.86,143.85,59.01608868]
[1724362285603,0.3468765,143.86,143.85,112.98734769]
[1724362288628,0.3468765,143.86,143.85,114.50245036]
[1724362289326,0.3468765,143.86,143.85,151.18245036]
[1724362289520,1.21128426,143.94,143.85,151.18245036]
[1724362289521,1.21128426,143.94,143.92,6.9482]
[1724362289915,1.21128426,143.94,143.93,6.9478]
[1724362290101,6.3939,143.96,143.94,6.9473]
[1724362291233,6.3939,143.96,143.95,6.9468]
[1724362293031,13.2645,143.99,143.95,6.9468]
[1724362293533,13.2645,143.99,143.94,6.9472]
[1724362294912,13.2645,143.99,143.95,6.9467]
[1724362296034,22.4345,143.99,143.95,6.9467]
[1724362296910,13.2645,143.99,143.95,6.9467]
[1724362297614,13.2645,143.99,143.94,6.9472]
[1724362299921,22.4345,143.99,143.94,6.9472]
[1724362301949,13.2645,143.99,143.94,6.9472]
[1724362307321,14.65892707,143.99,143.94,6.9472]
[1724362307521,1.39442707,143.98,143.94,6.9472]
[1724362307870,13.2645,143.99,143.94,6.9472]
[1724362308663,14.65892707,143.99,143.94,6.9472]
[1724362309651,8.33992707,143.98,143.94,6.9472]
[1724362310649,6.9455,143.98,143.94,6.9472]
[1724362311154,16.1164,143.96,143.93,17.369]
[1724362311864,7.19688,143.97,143.93,24.3167]
[1724362315345,8.34082707,143.96,143.93,17.369]
[1724362316155,16.36688,143.97,143.93,17.369]
[1724362316951,1.21092178,143.96,143.93,17.369]
[1724362317335,1.21092178,143.96,143.93,24.3166]
[1724362322560,1.21092178,143.96,143.88,12.88533084]
[1724362322561,10.38092178,143.96,143.88,12.88533084]
[1724362322753,10.38092178,143.96,143.89,6.9493]
[1724362322754,16.1173,143.94,143.89,6.9493]
[1724362323071,1.64540707,143.93,143.89,6.9493]
[1724362323298,8.59320707,143.93,143.89,6.9493]
[1724362323467,8.59320707,143.93,143.87,24.3265]
[1724362323468,62.51272707,143.92,143.87,24.3265]
[1724362323771,0.25098,143.91,143.87,24.3265]
[1724362323941,0.25098,143.91,143.87,17.376]
[1724362323942,7.19978,143.91,143.87,17.376]
[1724362324143,1.64540707,143.91,143.87,17.376]
[1724362324469,16.1178,143.93,143.88,6.9501]
[1724362326747,0.25098,143.92,143.88,6.9501]
[1724362328359,9.42098,143.92,143.88,6.9501]
[1724362330070,16.36938,143.92,143.87,24.3266]
[1724362333765,9.17,143.9,143.87,24.3266]
[1724362334544,7.19938,143.92,143.87,24.3266]
[1724362334771,9.17,143.9,143.87,24.3266]
[1724362337570,9.17,143.9,143.88,6.9501]
[1724362339967,1.21133538,143.91,143.88,6.9501]
[1724362340740,8.16023538,143.91,143.87,17.376]
[1724362340967,9.17,143.9,143.87,17.376]
[1724362341773,2.60576245,143.91,143.87,24.3265]
[1724362341983,1.21133538,143.91,143.88,6.9501]
[1724362342170,9.55456245,143.91,143.87,24.3267]
[1724362344361,8.16013538,143.91,143.87,24.3267]
[1724362344567,9.55456245,143.91,143.87,24.3267]
[1724362345571,17.33013538,143.91,143.87,24.3267]
[1724362348093,1.21133538,143.91,143.87,17.376]
[1724362348770,6.3298,143.95,143.9,6.9492]
[1724362348974,9.17,143.94,143.9,6.9492]
[1724362349174,8.15855621,143.94,143.9,6.9492]
[1724362349489,9.17,143.93,143.9,6.9492]
[1724362352393,8.15855621,143.94,143.9,6.9492]
[1724362354265,1.21115621,143.94,143.9,6.9492]
[1724362354692,10.38115621,143.94,143.9,6.9492]
[1724362355768,17.32865621,143.94,143.9,6.9492]
[1724362356685,10.38115621,143.94,143.91,6.9486]
[1724362357801,1.21115621,143.94,143.91,6.9486]
[1724362358795,1.21115621,143.94,143.9,6.9491]
[1724362359092,10.38115621,143.94,143.89,17.3739]
[1724362359667,10.38115621,143.94,143.9,6.9491]
[1724362360086,1.21115621,143.94,143.93,6.9478]
[1724362360285,2.66981794,144.0,143.92,9.17]
[1724362361284,2.66981794,144.0,143.97,6.9456]
[1724362363604,2.66981794,144.0,143.96,17.3651]
[1724362363605,2.66981794,144.0,143.96,24.3113]
[1724362364681,2.66981794,144.0,143.97,6.9458]
[1724362369507,2.66981794,144.0,143.96,24.3113]
[1724362369876,9.17,143.99,143.96,17.3651]
[1724362372675,9.17,143.99,143.93,24.3162]
[1724362372881,9.17,143.97,143.93,17.3688]
[1724362373311,9.17,143.97,143.94,6.9471]
[1724362377099,9.17,143.97,143.95,6.9468]
[1724362382701,9.17,143.99,143.95,6.9468]
[1724362389699,1.21065496,143.99,143.96,6.9462]
[1724362389930,10.38065496,143.99,143.96,6.9462]
[1724362403268,17.32555496,143.99,143.95,24.3134]
[1724362405160,9.17,143.97,143.93,6.9477]
[1724362408761,9.17,143.97,143.82,15.6713]
[1724362408762,9.17,143.94,143.82,15.6713]
[1724362408947,10.37,143.89,143.83,18.13628583]
[1724362409129,10.37,143.89,143.84,18.13628583]
[1724362409325,10.37,143.89,143.85,18.13724802]
[1724362409528,10.37,143.89,143.86,7.3051319]
[1724362409731,10.37,143.89,143.84,10.83211612]
[1724362409953,1.2,143.89,143.87,6.9506]
[1724362414963,16.1188,143.91,143.87,6.9506]
[1724362419647,16.1188,143.91,143.86,24.3282]
[1724362420968,9.17,143.87,143.8,7.2675825]
[1724362421271,9.17,143.83,143.8,24.3388]
[1724362423473,16.48239,143.88,143.81,6.9534]
[1724362423765,9.17,143.86,143.81,6.9534]
[1724362424346,16.1216,143.86,143.81,6.9534]
[1724362424946,6.952,143.85,143.8,24.3387]
[1724362426093,15.5124,143.84,143.8,24.3387]
[1724362426373,6.9527,143.83,143.8,17.3848]
[1724362426563,22.4646,143.84,143.8,17.3848]
[1724362432659,0.25098,143.83,143.8,17.3848]
[1724362432981,6.3424,143.84,143.8,25.72941741]
[1724362433369,6.3424,143.84,143.8,24.3387]
[1724362433370,13.2948,143.84,143.8,24.3387]
[1724362436988,13.2948,143.84,143.83,6.9526]
[1724362436989,6.3424,143.84,143.83,6.9526]
[1724362437493,6.3424,143.84,143.82,24.3349]
[1724362437860,6.3424,143.84,143.75,54.782]
[1724362438068,6.3424,143.84,143.77,9.17]
[1724362438281,6.3424,143.84,143.81,6.9532]
[1724362440060,6.3424,143.84,143.82,6.953]
[1724362456105,6.3424,143.84,143.8,24.3387]
[1724362456325,6.3424,143.84,143.81,6.9533]
[1724362484941,6.3424,143.84,143.8,17.3848]
[1724362484942,20.0,143.87,143.82,17.3823]
[1724362485124,9.17,143.87,143.82,17.3823]
[1724362485848,9.17,143.87,143.84,6.9521]
[1724362486328,6.9512,143.86,143.82,24.3352]
[1724362486846,16.1208,143.87,143.83,6.9525]
[1724362490547,9.17,143.87,143.84,6.952]
[1724362491523,9.17,143.87,143.85,6.9516]
[1724362491854,6.2906,143.88,143.85,6.9516]
[1724362493853,6.2906,143.88,143.86,6.9511]
[1724362494762,6.2906,143.88,143.85,6.9515]
[1724362496761,13.2408,143.88,143.84,24.3321]
[1724362497127,6.2906,143.88,143.85,6.9516]
[1724362497659,6.2906,143.88,143.86,6.9511]
[1724362498538,6.2906,143.88,143.85,6.9515]
[1724362499563,6.2906,143.88,143.86,6.9511]
[1724362508768,9.17,143.89,143.86,6.9511]
[1724362514278,9.17,143.89,143.87,6.9507]
[1724362515463,9.17,143.89,143.86,6.951]
[1724362520708,16.12,143.89,143.85,6.9515]
[1724362520891,9.17,143.89,143.85,6.9515]
[1724362521786,9.17,143.89,143.86,6.951]
[1724362527115,6.9493,143.9,143.87,6.9506]
[1724362527116,9.17,143.9,143.87,6.9506]
[1724362531595,6.9488,143.91,143.87,6.9506]
[1724362534494,28.7062,143.92,143.88,6.9501]
[1724362534702,37.8762,143.92,143.88,6.9501]
[1724362543623,22.3004,143.92,143.88,6.9501]
[1724362547434,22.3004,143.92,143.87,6.9505]
[1724362547636,22.3004,143.92,143.88,6.9501]
[1724362553621,15.352,143.92,143.88,6.9501]
[1724362555938,6.182,143.92,143.88,6.9501]
[1724362556453,15.352,143.92,143.88,6.9501]
[1724362560361,15.352,143.92,143.89,6.9497]
[1724362561163,6.182,143.92,143.89,6.9497]
[1724362565172,6.182,143.92,143.9,6.9492]
[1724362571362,9.17,143.93,143.9,6.9492]
[1724362585194,22.5852,143.95,143.91,6.9486]
[1724362586697,9.17,143.93,143.87,17.3761]
[1724362586931,0.25098,143.92,143.87,17.3761]
[1724362587279,9.17,143.91,143.87,17.3761]
[1724362587782,9.17,143.91,143.88,6.9499]
[1724362620215,6.291,143.9,143.88,6.9499]
[1724362620533,6.291,143.9,143.87,24.3267]
[1724362620731,6.291,143.9,143.85,6.9512]
[1724362620948,9.42098,143.89,143.86,6.9511]
[1724362621236,9.42098,143.89,143.85,6.9515]
[1724362623141,9.42098,143.89,143.86,6.9511]
[1724362623559,9.29549,143.89,143.86,6.9511]
[1724362623717,9.17,143.89,143.86,6.9511]
[1724362625350,1.64540707,143.88,143.85,6.9516]
[1724362625648,0.25098,143.88,143.85,6.9516]
[1724362627384,9.17,143.87,143.84,24.3316]
[1724362630040,13.3922,143.86,143.82,6.9528]
[1724362630247,13.3922,143.86,143.81,17.3831]
[1724362630248,17.51622707,143.85,143.81,17.3831]
[1724362631128,16.1218,143.85,143.81,24.3364]
[1724362631334,0.25098,143.84,143.81,24.3364]
[1724362632337,6.9518,143.85,143.81,24.3364]
[1724362637065,22.68779,143.86,143.81,24.3364]
[1724362637254,0.12549,143.85,143.81,24.3364]
[1724362638239,0.25098,143.85,143.81,24.3364]
[1724362641038,0.12549,143.85,143.81,24.3364]
[1724362645547,7.07709,143.85,143.81,24.3364]
[1724362645745,7.20258,143.85,143.81,24.3364]
[1724362649463,9.17,143.84,143.81,24.3364]
[1724362650471,9.17,143.84,143.79,6.9542]
[1724362650472,16.1225,143.84,143.79,6.9542]
[1724362650777,0.25098,143.83,143.79,6.9542]
[1724362653983,1.64540707,143.83,143.79,6.9542]
[1724362657680,0.25098,143.83,143.79,6.9542]
[1724362658385,0.25098,143.83,143.8,6.954]
[1724362658692,16.1225,143.84,143.8,6.954]
[1724362659587,0.25098,143.83,143.8,6.954]
[1724362661136,1.64540707,143.83,143.8,6.954]
[1724362664762,13.1071,143.82,143.78,24.3416]
[1724362664976,0.25098,143.81,143.78,24.3416]
[1724362670508,15.324,143.82,143.79,6.9545]
[1724362671081,0.25098,143.81,143.79,6.9545]
[1724362671278,0.12549,143.81,143.79,6.9545]
[1724362671484,15.324,143.82,143.79,6.9545]
[1724362672412,0.25098,143.81,143.79,6.9545]
[1724362672919,0.25098,143.81,143.78,24.3417]
[1724362683946,22.2771,143.82,143.78,24.3417]
[1724362685439,15.324,143.82,143.79,6.9545]
[1724362693567,16.71842707,143.82,143.79,6.9545]
[1724362710176,23.67162707,143.82,143.78,24.3418]
[1724362710474,0.25098,143.81,143.79,7.29759999]
[1724362710678,9.17,143.8,143.78,24.3418]
[1724362710851,9.17,143.8,143.79,7.29768669]
[1724362711062,9.17,143.8,143.78,24.3418]
[1724362711252,9.17,143.8,143.73,51.1155]
[1724362711253,16.1241,143.8,143.79,7.29768433]
[1724362711479,61.37508,143.8,143.76,6.9556]
[1724362711660,0.25098,143.79,143.77,7.29774598]
[1724362712067,9.17,143.8,143.77,6.9554]
[1724362713560,0.25098,143.79,143.77,6.9554]
[1724362715381,1.46325956,143.79,143.77,6.9554]
[1724362715576,1.46325956,143.79,143.76,24.3453]
[1724362715880,1.46325956,143.79,143.77,7.29819386]
[1724362716082,1.46325956,143.79,143.76,24.3453]
[1724362716379,1.46325956,143.79,143.77,7.29827603]
[1724362716576,1.46325956,143.79,143.76,24.3453]
[1724362716779,1.21227956,143.79,143.77,14.2537632]
[1724362717083,1.21227956,143.79,143.77,6.9555]
[1724362730906,1.21227956,143.79,143.78,6.955]
[1724362742300,1.21227956,143.79,143.78,14.25598946]
[1724362744033,9.17,143.81,143.78,14.25598946]
[1724362744332,9.17,143.81,143.78,6.955]
[1724362752456,15.83934912,143.82,143.78,6.955]
[1724362752646,9.42098,143.81,143.78,6.955]
[1724362763355,9.42098,143.81,143.77,6.9553]
[1724362763555,9.42098,143.81,143.78,7.29847355]
[1724362763781,9.42098,143.81,143.77,6.9553]
[1724362764279,16.37458,143.81,143.77,6.9553]
[1724362764590,1.21225052,143.8,143.77,6.9553]
[1724362800443,10.56442707,143.79,143.73,33.7215]
[1724362800753,10.56442707,143.79,143.74,14.82705886]
[1724362800754,0.25098,143.78,143.74,14.82705886]
[1724362800918,0.12549,143.78,143.75,14.82705886]
[1724362801113,17.77000707,143.79,143.74,6.9566]
[1724362801319,9.17,143.77,143.75,14.82700205]
[1724362801549,0.12549,143.76,143.73,24.3504]
[1724362801742,0.25098,143.76,143.73,24.3504]
[1724362810027,9.42098,143.77,143.73,24.3504]
[1724362810444,0.25098,143.77,143.73,24.3504]
[1724362810954,9.42098,143.77,143.73,24.3504]
[1724362811828,0.25098,143.77,143.73,24.3504]
[1724362819769,0.25098,143.77,143.74,6.9569]
[1724362822253,1.2125858,143.76,143.74,6.9569]
[1724362828886,1.2125858,143.76,143.73,24.3503]
[1724362828887,0.25098,143.75,143.73,24.3503]
[1724362836811,0.25098,143.75,143.73,17.393]
[1724362837109,45.25098,143.75,143.7,17.3964]
[1724362837798,45.25098,143.75,143.72,6.9579]
[1724362842617,1.21276382,143.74,143.72,6.9579]
[1724362842802,0.25098,143.73,143.72,6.9579]
[1724362846698,0.25098,143.73,143.71,6.9583]
[1724362847216,1.64540707,143.73,143.71,6.9583]
[1724362851716,1.64540707,143.73,143.7,17.3964]
[1724362851904,1.64540707,143.73,143.7,24.3549]
[1724362855512,9.17,143.72,143.7,17.3964]
[1724362855697,0.25098,143.71,143.7,17.3964]
[1724362862791,1.46399904,143.71,143.7,17.3964]
[1724362863008,1.46399904,143.71,143.68,6.9597]
[1724362863327,46.46399904,143.71,143.68,6.9597]
[1724362874928,53.42249904,143.71,143.67,24.3602]
[1724362875135,46.46399904,143.71,143.67,24.3602]
[1724362877246,53.42249904,143.71,143.67,24.3602]
[1724362877409,46.46399904,143.71,143.67,24.3602]
[1724362882518,53.42239904,143.71,143.67,24.3602]
[1724362886137,9.17,143.7,143.67,24.3602]